bitfinex-derivatives/quotes_BTCF0:USTF0_20250609
["timestamp","ask_amount","ask_price","bid_price","bid_amount"]
[1749497653014,1.71158092,108510.0,108500.0,0.18171861]
[1749497653213,1.71158092,108510.0,108500.0,0.14898925]
[1749497653718,1.74448092,108510.0,108500.0,0.14898925]
[1749497653916,1.73550185,108510.0,108500.0,0.14898925]
[1749497654523,1.73550185,108510.0,108500.0,0.33321245]
[1749497654816,1.75400649,108510.0,108500.0,0.33321245]
[1749497655424,1.75400649,108510.0,108500.0,0.2190232]
[1749497656130,1.75400649,108510.0,108500.0,0.0348]
[1749497656330,1.75400649,108510.0,108500.0,0.33321265]
[1749497657942,1.54387197,108510.0,108500.0,0.33321265]
[1749497658141,1.75400649,108510.0,108500.0,0.33321265]
[1749497658344,1.22236649,108510.0,108500.0,0.33321265]
[1749497658539,1.68906649,108510.0,108500.0,0.36571265]
[1749497658845,1.47893197,108510.0,108500.0,0.36571265]
[1749497659247,1.11813197,108510.0,108500.0,0.36571265]
[1749497659443,1.11813197,108510.0,108500.0,0.36976925]
[1749497662140,1.32826649,108510.0,108500.0,0.38236097]
[1749497662336,1.32826649,108510.0,108500.0,0.36976925]
[1749497662542,1.32826649,108510.0,108500.0,0.39653082]
[1749497662845,1.48106649,108510.0,108500.0,0.39653081]
[1749497663039,1.48106649,108510.0,108500.0,0.36976925]
[1749497663239,1.48106649,108510.0,108500.0,0.38236033]
[1749497663439,1.48106649,108510.0,108500.0,0.39653017]
[1749497663739,1.48106649,108510.0,108500.0,0.38393909]
[1749497663939,1.45358281,108510.0,108500.0,0.38236032]
[1749497664143,1.45358281,108510.0,108500.0,0.38393911]
[1749497664438,0.52804829,108510.0,108500.0,0.525042]
[1749497664648,0.7165663,108510.0,108500.0,0.98178727]
[1749497664842,0.7165663,108510.0,108500.0,0.98339784]
[1749497665034,0.7165663,108510.0,108500.0,0.96922901]
[1749497665233,0.1856063,108510.0,108500.0,0.96922901]
[1749497665447,0.7169663,108510.0,108500.0,0.99583269]
[1749497665647,0.7169663,108510.0,108500.0,0.98339106]
[1749497665943,0.7169663,108510.0,108500.0,0.63507128]
[1749497666250,0.7169663,108510.0,108500.0,0.60842901]
[1749497666635,0.7169663,108510.0,108500.0,0.62259131]
[1749497666845,0.7169663,108510.0,108500.0,0.60842901]
[1749497667039,0.7169663,108510.0,108500.0,0.62259199]
[1749497667242,0.7169663,108510.0,108500.0,0.60842901]
[1749497667437,0.7169663,108510.0,108500.0,0.62259204]
[1749497667642,0.7169663,108510.0,108500.0,0.60842901]
[1749497668849,0.7169663,108510.0,108500.0,0.62259816]
[1749497669046,0.7169663,108510.0,108500.0,0.62259826]
[1749497669350,0.7169663,108510.0,108500.0,0.60842901]
[1749497670548,0.7169663,108510.0,108500.0,0.62259511]
[1749497670749,0.7169663,108510.0,108500.0,0.60842901]
[1749497670948,0.7169663,108510.0,108500.0,0.62253293]
[1749497671154,0.7169663,108510.0,108500.0,0.62253298]
[1749497671346,0.7169663,108510.0,108500.0,0.62253304]
[1749497671649,0.7169663,108510.0,108500.0,0.62253305]
[1749497671839,0.7169663,108510.0,108500.0,0.60842901]
[1749497672040,0.7169663,108510.0,108500.0,0.62253305]
[1749497672449,0.7169663,108510.0,108500.0,0.60842901]
[1749497672849,0.7169663,108510.0,108500.0,0.62254147]
[1749497673148,0.1856063,108510.0,108500.0,0.62254161]
[1749497673345,0.7168463,108510.0,108500.0,0.60842901]
[1749497673546,0.7168463,108510.0,108500.0,0.62254158]
[1749497673947,0.7168463,108510.0,108500.0,0.62254168]
[1749497674141,0.7168463,108510.0,108500.0,0.60842901]
[1749497674348,0.7168463,108510.0,108500.0,0.62254159]
[1749497674548,0.1856063,108510.0,108500.0,0.62254175]
[1749497674743,0.7168463,108510.0,108500.0,0.62254173]
[1749497674950,0.7168463,108510.0,108500.0,0.60842901]
[1749497675752,1.0776463,108510.0,108500.0,0.60842901]
[1749497676653,1.28778082,108510.0,108500.0,0.39829449]
[1749497676855,1.28778082,108510.0,108500.0,0.41240712]
[1749497677254,1.32028082,108510.0,108500.0,0.41240712]
[1749497677442,1.32028082,108510.0,108500.0,0.39829449]
[1749497677647,1.1101463,108510.0,108500.0,0.39829449]
[1749497677847,1.1101463,108510.0,108500.0,0.25558]
[1749497678252,1.1101463,108510.0,108500.0,0.26967179]
[1749497678548,1.1101463,108510.0,108500.0,0.25558]
[1749497678854,0.7168463,108510.0,108500.0,0.60842901]
[1749497679055,0.7168463,108510.0,108500.0,0.7371502]
[1749497679346,0.5326,108510.0,108500.0,0.8406039]
[1749497679548,0.5312,108510.0,108500.0,1.16474765]
[1749497679747,0.7158063,108510.0,108500.0,1.16474765]
[1749497679948,0.7154063,108510.0,108500.0,1.17883247]
[1749497680150,0.7158063,108510.0,108500.0,1.16474765]
[1749497680348,0.7158063,108510.0,108500.0,1.17883342]
[1749497680751,0.7158063,108510.0,108500.0,1.17883343]
[1749497680953,0.7158063,108510.0,108500.0,1.16474765]
[1749497681154,0.7157663,108510.0,108500.0,1.16474765]
[1749497681354,0.7157663,108510.0,108500.0,1.17883339]
[1749497681553,0.7157663,108510.0,108500.0,1.16474765]
[1749497681754,0.7157663,108510.0,108500.0,1.17883339]
[1749497682058,0.7157663,108510.0,108500.0,1.16474765]
[1749497682251,0.7157663,108510.0,108500.0,1.17883832]
[1749497682456,0.7157663,108510.0,108500.0,1.16474765]
[1749497682657,0.7157663,108510.0,108500.0,1.17883833]
[1749497682858,0.7157663,108510.0,108500.0,1.17883834]
[1749497683052,0.10244,108510.0,108500.0,1.16474765]
[1749497683252,0.7157263,108510.0,108500.0,1.17883833]
[1749497683558,0.7157263,108510.0,108500.0,1.16474765]
[1749497683960,0.7157263,108510.0,108500.0,1.17883834]
[1749497684158,0.53152,108510.0,108500.0,1.1077951]
[1749497684654,0.7157263,108510.0,108500.0,1.1077951]
[1749497685263,0.53152,108510.0,108500.0,1.12188205]
[1749497685655,0.53152,108510.0,108500.0,0.97876047]
[1749497685857,0.53152,108510.0,108500.0,0.97876048]
[1749497686056,0.53152,108510.0,108500.0,0.97876039]
[1749497686257,0.53152,108510.0,108500.0,0.96467352]
[1749497686858,0.53108,108510.0,108500.0,1.17480804]
[1749497687058,0.53148,108510.0,108500.0,1.17880371]
[1749497687256,0.53148,108510.0,108500.0,1.1788037]
[1749497687460,0.10217829,108520.0,108510.0,0.1842063]
[1749497687657,0.53084765,108520.0,108510.0,1.22914947]
[1749497687960,0.53084765,108520.0,108510.0,1.27450274]
[1749497688266,0.53124765,108520.0,108510.0,1.26044947]
[1749497688466,0.53084765,108520.0,108510.0,1.2744988]
[1749497688766,0.53124765,108520.0,108510.0,1.27549878]
[1749497688960,0.53124765,108520.0,108510.0,1.26144947]
[1749497689665,0.51628689,108520.0,108510.0,1.27533972]
[1749497689865,0.51628689,108520.0,108510.0,1.27533977]
[1749497690060,0.51628689,108520.0,108510.0,1.26144947]
[1749497690361,0.51624689,108520.0,108510.0,1.26144947]
[1749497690561,0.53144,108520.0,108510.0,1.26144947]
[1749497690764,0.53104,108520.0,108510.0,1.27533923]
[1749497690968,0.53144,108520.0,108510.0,1.06137534]
[1749497691156,0.53104,108520.0,108510.0,1.07057854]
[1749497691361,0.53144,108520.0,108510.0,1.27057896]
[1749497691760,0.53144,108520.0,108510.0,1.28445947]
[1749497691961,0.53144,108520.0,108510.0,1.27057896]
[1749497692655,0.53144,108520.0,108510.0,1.28445979]
[1749497692858,0.53144,108520.0,108510.0,1.27057896]
[1749497693256,0.53144,108520.0,108510.0,1.28445861]
[1749497693664,0.53144,108520.0,108510.0,1.28456177]
[1749497694165,0.53144,108520.0,108510.0,1.28456176]
[1749497694472,0.53144,108520.0,108510.0,1.27057896]
[1749497694770,0.53144,108520.0,108510.0,1.28448413]
[1749497695065,0.53144,108520.0,108510.0,1.28447588]
[1749497695266,0.0004,108520.0,108510.0,1.27057896]
[1749497695473,0.53116,108520.0,108510.0,1.27057896]
[1749497696564,0.53116,108520.0,108510.0,1.28447579]
[1749497696763,0.53116,108520.0,108510.0,1.27057896]
[1749497697063,0.53116,108520.0,108510.0,1.28447468]
[1749497697566,0.52037138,108520.0,108510.0,1.28447468]
[1749497697767,0.52037138,108520.0,108510.0,1.27057896]
[1749497697961,0.52037138,108520.0,108510.0,1.28447467]
[1749497698162,0.52037138,108520.0,108510.0,1.28447468]
[1749497698359,0.52037138,108520.0,108510.0,1.27057896]
[1749497698564,0.52037138,108520.0,108510.0,1.28447468]
[1749497698970,0.52037138,108520.0,108510.0,1.28447513]
[1749497699170,0.52037138,108520.0,108510.0,1.28447527]
[1749497699370,0.52037138,108520.0,108510.0,1.28447528]
[1749497699670,0.5054111,108520.0,108510.0,1.28447531]
[1749497699971,0.5054111,108520.0,108510.0,1.28448436]
[1749497700169,0.5054111,108520.0,108510.0,1.28448671]
[1749497700571,0.5054111,108520.0,108510.0,1.27057896]
[1749497701173,0.5054111,108520.0,108510.0,1.28461467]
[1749497701368,0.5054111,108520.0,108510.0,1.27057896]
[1749497701974,0.5054111,108520.0,108510.0,0.85030992]
[1749497702268,0.5054111,108520.0,108510.0,1.27057896]
[1749497702670,0.5054111,108520.0,108510.0,1.28461591]
[1749497702869,0.5054111,108520.0,108510.0,1.28461594]
[1749497703072,0.5054111,108520.0,108510.0,1.27057896]
[1749497703468,0.5054111,108520.0,108510.0,1.28461586]
[1749497703673,0.5054111,108520.0,108510.0,1.27057896]
[1749497703975,0.5054111,108520.0,108510.0,1.28461585]
[1749497704173,0.10224,108520.0,108510.0,1.28461585]
[1749497704367,0.10224,108520.0,108510.0,1.27057896]
[1749497704569,0.10224,108520.0,108510.0,1.28461585]
[1749497704769,0.10224,108520.0,108510.0,1.28461586]
[1749497704970,0.10224,108520.0,108510.0,1.28461587]
[1749497705270,0.10224,108520.0,108510.0,1.28461586]
[1749497705471,0.10224,108520.0,108510.0,1.28461585]
[1749497705774,0.10224,108520.0,108510.0,1.27057896]
[1749497705968,0.10224,108520.0,108510.0,1.28461568]
[1749497706267,0.10224,108520.0,108510.0,1.27463556]
[1749497706473,0.10224,108520.0,108510.0,1.28864506]
[1749497706675,0.10224,108520.0,108510.0,0.85436652]
[1749497706875,0.10224,108520.0,108510.0,1.28864678]
[1749497707173,0.10224,108520.0,108510.0,1.28864736]
[1749497707570,0.09145141,108520.0,108510.0,1.27463556]
[1749497707775,0.59599829,108530.0,108520.0,0.1841893]
[1749497707975,0.59599829,108530.0,108520.0,0.91207783]
[1749497708176,0.59599829,108530.0,108520.0,0.89806716]
[1749497708574,0.59599829,108530.0,108520.0,0.91207756]
[1749497708777,0.59599829,108530.0,108520.0,0.91207771]
[1749497708965,0.59599829,108530.0,108520.0,0.91207777]
[1749497708966,0.78017059,108530.0,108520.0,0.91207777]
[1749497709370,0.78117059,108530.0,108520.0,0.91207777]
[1749497709577,0.59699829,108530.0,108520.0,0.89806716]
[1749497709774,0.59699829,108530.0,108520.0,0.91207781]
[1749497710078,0.59699829,108530.0,108520.0,0.89806716]
[1749497710279,0.59699829,108530.0,108520.0,0.9120777]
[1749497711076,0.59699829,108530.0,108520.0,0.89806716]
[1749497711276,0.78117069,108530.0,108520.0,0.91206644]
[1749497711477,0.78117069,108530.0,108520.0,0.89806716]
[1749497711781,0.59699829,108530.0,108520.0,0.91206644]
[1749497711981,0.78117069,108530.0,108520.0,0.91206644]
[1749497712181,0.78117069,108530.0,108520.0,0.89806716]
[1749497712387,0.78117069,108530.0,108520.0,0.91206248]
[1749497712777,0.78117069,108530.0,108520.0,0.89806716]
[1749497713184,0.59699829,108530.0,108520.0,0.89806716]
[1749497713379,0.59699829,108530.0,108520.0,0.9120625]
[1749497713883,0.59699829,108530.0,108520.0,0.91206327]
[1749497714085,0.59699829,108530.0,108520.0,0.95512424]
[1749497714086,0.58203826,108530.0,108520.0,0.95512424]
[1749497714280,0.58203826,108530.0,108520.0,0.9691204]
[1749497714582,0.05147826,108530.0,108520.0,0.9691204]
[1749497714782,0.58195826,108530.0,108520.0,0.96912017]
[1749497714986,0.58195826,108530.0,108520.0,1.01912424]
[1749497715285,0.58235826,108530.0,108520.0,1.03312682]
[1749497715480,0.58235826,108530.0,108520.0,1.01912424]
[1749497715675,0.58235826,108530.0,108520.0,1.03312668]
[1749497716276,0.58235826,108530.0,108520.0,1.01912424]
[1749497716772,0.58235826,108530.0,108520.0,1.03312727]
[1749497717277,0.58235826,108530.0,108520.0,1.01912424]
[1749497717475,0.58235826,108530.0,108520.0,1.03312441]
[1749497718082,0.58235826,108530.0,108520.0,1.00062441]
[1749497718284,0.58235826,108530.0,108520.0,0.98662424]
[1749497718684,0.58235826,108530.0,108520.0,1.00062442]
[1749497718884,0.58235826,108530.0,108520.0,0.98662424]
[1749497719084,0.58235826,108530.0,108520.0,1.00062432]
[1749497719289,0.58235826,108530.0,108520.0,1.00062433]
[1749497719491,0.58235826,108530.0,108520.0,1.00061871]
[1749497719688,0.58235826,108530.0,108520.0,0.98662424]
[1749497720086,0.58235826,108530.0,108520.0,1.00061871]
[1749497720286,0.58235826,108530.0,108520.0,1.00061422]
[1749497720481,0.58235826,108530.0,108520.0,1.00467082]
[1749497720681,0.58235826,108530.0,108520.0,0.99068084]
[1749497720989,0.58235826,108530.0,108520.0,1.00467031]
[1749497721186,0.58235826,108530.0,108520.0,1.00492452]
[1749497721388,0.58235826,108530.0,108520.0,0.99093505]
[1749497721589,0.58235826,108530.0,108520.0,1.00492452]
[1749497721889,0.58235826,108530.0,108520.0,0.99093505]
[1749497722589,0.58235826,108530.0,108520.0,1.00492452]
[1749497722888,0.58235826,108530.0,108520.0,1.00492374]
[1749497723282,0.58235826,108530.0,108520.0,0.99093505]
[1749497723682,0.58235826,108530.0,108520.0,1.00492374]
[1749497723987,0.58235826,108530.0,108520.0,0.99093505]
[1749497724288,0.58235826,108530.0,108520.0,1.00492374]
[1749497724788,0.76653066,108530.0,108520.0,0.97342398]
[1749497724979,0.76653066,108530.0,108520.0,0.97342404]
[1749497725180,0.76653066,108530.0,108520.0,0.95943505]
[1749497725595,0.58235826,108530.0,108520.0,0.95943505]
[1749497725789,0.58219826,108530.0,108520.0,0.95943505]
[1749497726292,0.02027826,108530.0,108520.0,1.18381947]
[1749497726492,0.02027826,108530.0,108520.0,1.38021251]
[1749497726493,0.001,108530.0,108520.0,1.38021251]
[1749497726680,0.01392505,108540.0,108530.0,0.1841723]
[1749497726990,0.01392505,108540.0,108530.0,1.05964976]
[1749497727183,0.01392505,108540.0,108530.0,1.34497941]
[1749497727589,0.44240505,108540.0,108530.0,1.35896961]
[1749497727789,0.44240505,108540.0,108530.0,1.07364083]
[1749497727790,0.01392505,108540.0,108530.0,1.07364083]
[1749497728088,0.01432505,108540.0,108530.0,1.07364228]
[1749497728286,0.01632505,108540.0,108530.0,1.07464228]
[1749497728481,0.01632505,108540.0,108530.0,1.06064976]
[1749497728685,0.01632505,108540.0,108530.0,1.26099564]
[1749497728883,0.01592505,108540.0,108530.0,1.07464213]
[1749497729086,0.01592505,108540.0,108530.0,1.35997173]
[1749497729293,0.01632505,108540.0,108530.0,1.34576559]
[1749497730099,0.01632505,108540.0,108530.0,1.14947573]
[1749497730295,0.01632505,108540.0,108530.0,1.13548377]
[1749497731297,0.01632505,108540.0,108530.0,0.85015412]
[1749497732102,0.01632505,108540.0,108530.0,0.86397412]
[1749497732497,0.01632505,108540.0,108530.0,0.86857412]
[1749497733300,0.56102,108550.0,108540.0,0.1841554]
[1749497733497,0.56102,108550.0,108540.0,1.01808004]
[1749497734103,0.56102,108550.0,108540.0,1.22836186]
[1749497734792,0.56402,108550.0,108540.0,1.22836186]
[1749497734999,0.56402,108550.0,108540.0,1.01808004]
[1749497736292,0.63654041,108550.0,108540.0,1.01808004]
[1749497737093,0.63654041,108550.0,108540.0,1.16096893]
[1749497737902,0.82067881,108550.0,108540.0,0.71954429]
[1749497738106,0.66664041,108550.0,108540.0,0.92982611]
[1749497739706,0.85077881,108550.0,108540.0,0.92982611]
[1749497740206,0.81177881,108550.0,108540.0,0.92982611]
[1749497746001,0.32065881,108550.0,108540.0,0.71954429]
[1749497746206,1.42158063,108550.0,108540.0,0.29853908]
[1749497746404,1.42158063,108550.0,108540.0,0.1841555]
[1749497746405,1.60573103,108550.0,108540.0,0.1841555]
[1749497746605,1.60573103,108550.0,108540.0,0.26996543]
[1749497747407,1.59673103,108550.0,108540.0,0.26996543]
[1749497748606,1.18989273,108550.0,108540.0,0.1841555]
[1749497749707,0.97961091,108550.0,108540.0,0.1841555]
[1749497750110,0.97961091,108550.0,108540.0,0.29853918]
[1749497750909,0.97961091,108550.0,108540.0,0.30259578]
[1749497751209,0.97961091,108550.0,108540.0,0.31650351]
[1749497751409,0.97961091,108550.0,108540.0,0.30259578]
[1749497751709,0.97961091,108550.0,108540.0,0.31650674]
[1749497751910,0.97961091,108550.0,108540.0,0.30259578]
[1749497752611,0.97961091,108550.0,108540.0,0.31650656]
[1749497752806,0.35769501,108550.0,108540.0,0.67730656]
[1749497753111,0.09742041,108550.0,108540.0,1.12637419]
[1749497753306,0.60532041,108550.0,108540.0,1.03377574]
[1749497753508,0.17756041,108550.0,108540.0,1.03377574]
[1749497753708,0.60568041,108550.0,108540.0,1.24783412]
[1749497754012,0.60528041,108550.0,108540.0,1.24783426]
[1749497754311,0.56668041,108550.0,108540.0,1.03755271]
[1749497754507,0.56668041,108550.0,108540.0,1.03755257]
[1749497754712,0.56668041,108550.0,108540.0,1.03755252]
[1749497754910,0.56668041,108550.0,108540.0,1.02363674]
[1749497755411,0.56668041,108550.0,108540.0,1.03755286]
[1749497755912,0.56668041,108550.0,108540.0,1.03755283]
[1749497756212,0.56668041,108550.0,108540.0,1.02363674]
[1749497756805,0.75081891,108550.0,108540.0,1.02363674]
[1749497759014,0.75081891,108550.0,108540.0,1.37705482]
[1749497759015,0.03692041,108550.0,108540.0,1.37705482]
[1749497759218,0.56644041,108550.0,108540.0,1.176912]
[1749497759515,0.56604041,108550.0,108540.0,1.176912]
[1749497759817,0.56644041,108550.0,108540.0,1.23391856]
[1749497760117,0.55148422,108550.0,108540.0,1.23391856]
[1749497760817,0.55148422,108550.0,108540.0,1.23851856]
[1749497761410,0.51248422,108550.0,108540.0,1.23851856]
[1749497761814,0.58768683,108550.0,108540.0,1.23851856]
[1749497763417,0.58768683,108550.0,108540.0,1.24790079]
[1749497764820,0.58768683,108550.0,108540.0,1.26171079]
[1749497765912,0.15964683,108550.0,108540.0,1.26171079]
[1749497766116,0.58760683,108550.0,108540.0,1.26171079]
[1749497767621,0.15964683,108550.0,108540.0,1.26171079]
[1749497767916,0.57678129,108550.0,108540.0,1.26171079]
[1749497768617,0.57678129,108550.0,108540.0,1.06156797]
[1749497769018,0.41777829,108560.0,108550.0,0.1841386]
[1749497769215,0.94713829,108560.0,108550.0,0.93134657]
[1749497769613,0.90853829,108560.0,108550.0,0.93134657]
[1749497770317,0.91153829,108560.0,108550.0,0.93134657]
[1749497771523,0.98595316,108560.0,108550.0,0.93134657]
[1749497772311,1.17007466,108560.0,108550.0,0.93134657]
[1749497772623,0.98595316,108560.0,108550.0,0.93134657]
[1749497772923,0.98595316,108560.0,108550.0,0.78832042]
[1749497773138,1.01755316,108560.0,108550.0,0.78832042]
[1749497773425,1.20167466,108560.0,108550.0,0.9885571]
[1749497773926,1.01755316,108560.0,108550.0,0.9885571]
[1749497774827,1.20167466,108560.0,108550.0,0.9885571]
[1749497775126,1.20167466,108560.0,108550.0,1.13153544]
[1749497776629,1.16267466,108560.0,108550.0,1.13153544]
[1749497776826,0.97855316,108560.0,108550.0,1.13153544]
[1749497777020,1.16267466,108560.0,108550.0,0.93129876]
[1749497778919,0.41759316,108560.0,108550.0,0.93129876]
[1749497779117,0.94679316,108560.0,108550.0,0.93129876]
[1749497780121,0.94639316,108560.0,108550.0,0.93129876]
[1749497780319,0.94679316,108560.0,108550.0,0.93535536]
[1749497782015,0.94675316,108560.0,108550.0,0.93535536]
[1749497783420,0.94675316,108560.0,108550.0,0.96735536]
[1749497783826,0.90775316,108560.0,108550.0,0.96735536]
[1749497784626,0.48003316,108560.0,108550.0,0.96735536]
[1749497784825,0.90775316,108560.0,108550.0,0.82437702]
[1749497785027,0.90735316,108560.0,108550.0,0.82437702]
[1749497785227,0.90775316,108560.0,108550.0,0.82437702]
[1749497785925,0.90775316,108560.0,108550.0,1.18517702]
[1749497786125,0.90775316,108560.0,108550.0,1.38558747]
[1749497786325,0.90775316,108560.0,108550.0,1.18517702]
[1749497786521,0.90775316,108560.0,108550.0,1.02480285]
[1749497786722,1.09187456,108560.0,108550.0,0.81452103]
[1749497786925,1.15747456,108560.0,108550.0,1.02480285]
[1749497787728,1.15747456,108560.0,108550.0,0.99170285]
[1749497789230,1.15747456,108560.0,108550.0,0.78142103]
[1749497789427,1.15747456,108560.0,108550.0,0.99170285]
[1749497789624,0.97335316,108560.0,108550.0,0.99170285]
[1749497790930,0.93435316,108560.0,108550.0,0.99630285]
[1749497791636,1.11847476,108560.0,108550.0,0.99630285]
[1749497793029,0.58931476,108560.0,108550.0,0.99630285]
[1749497793228,0.93403316,108560.0,108550.0,0.99630285]
[1749497793629,1.11815486,108560.0,108550.0,0.99630285]
[1749497794224,0.93403316,108560.0,108550.0,0.99630285]
[1749497795131,0.50643316,108560.0,108550.0,0.99630285]
[1749497795327,0.90149316,108560.0,108550.0,0.99630285]
[1749497795526,0.90149316,108560.0,108550.0,1.02830285]
[1749497795721,0.86839316,108560.0,108550.0,1.02830285]
[1749497797429,0.86839316,108560.0,108550.0,1.04211285]
[1749497797730,0.50547316,108560.0,108550.0,1.04211285]
[1749497797931,0.46607316,108560.0,108550.0,1.04211285]
[1749497798235,0.46647316,108560.0,108550.0,0.84168702]
[1749497799729,0.38686487,108570.0,108550.0,0.84168702]
[1749497799730,0.52876,108570.0,108560.0,0.2301488]
[1749497799931,0.28923571,108590.0,108580.0,0.1840877]
[1749497800229,0.28923571,108590.0,108580.0,0.89835945]
[1749497800230,0.81795571,108590.0,108580.0,0.89835945]
[1749497800629,0.81835571,108590.0,108580.0,0.89835945]
[1749497801136,0.28963571,108590.0,108580.0,1.01280985]
[1749497801336,0.81835571,108590.0,108580.0,0.86961992]
[1749497801525,0.81795571,108590.0,108580.0,0.86961992]
[1749497801730,0.81835571,108590.0,108580.0,0.86961992]
[1749497802636,0.82035571,108590.0,108580.0,0.86961992]
[1749497803636,0.89569246,108590.0,108580.0,0.86961992]
[1749497804036,0.36697246,108590.0,108580.0,0.86961992]
[1749497804239,0.89565246,108590.0,108580.0,0.86961992]
[1749497804930,0.85665246,108590.0,108580.0,0.86961992]
[1749497808139,0.85665246,108590.0,108580.0,0.87421992]
[1749497809438,0.85665246,108590.0,108580.0,0.90721992]
[1749497810742,0.85665246,108590.0,108580.0,0.91127652]
[1749497810934,0.85665246,108590.0,108580.0,0.94177652]
[1749497812341,0.81765246,108590.0,108580.0,0.94177652]
[1749497813837,1.38873428,108590.0,108580.0,0.3071947]
[1749497814143,1.55991263,108590.0,108580.0,0.3071948]
[1749497814339,1.55991263,108590.0,108580.0,0.27850262]
[1749497814739,1.59705764,108590.0,108580.0,0.09441482]
[1749497815040,1.59705764,108590.0,108580.0,0.27850262]
[1749497815445,1.62735764,108590.0,108580.0,0.09441482]
[1749497815843,1.62735764,108590.0,108580.0,0.27850252]
[1749497816240,1.62735869,108590.0,108580.0,0.27850252]
[1749497817445,1.62735869,108590.0,108580.0,0.29231252]
[1749497817646,1.59021263,108590.0,108580.0,0.29231252]
[1749497819245,1.53283428,108590.0,108580.0,0.29231252]
[1749497822040,1.54221829,108590.0,108580.0,0.29231252]
[1749497822548,1.57491829,108590.0,108580.0,0.29231252]
[1749497824240,1.04623829,108590.0,108580.0,0.10822482]
[1749497824440,1.70357483,108590.0,108580.0,0.10822482]
[1749497824644,1.70357483,108590.0,108580.0,0.0224666]
[1749497826243,1.70357483,108590.0,108580.0,0.10822482]
[1749497826444,1.66457483,108590.0,108580.0,0.0224666]
[1749497827053,1.66457483,108590.0,108580.0,0.10822482]
[1749497828553,0.3368877,108580.0,108570.0,0.08589651]
[1749497828849,1.03965006,108580.0,108570.0,0.08589651]
[1749497830854,1.03965006,108580.0,108570.0,0.00013829]
[1749497831055,1.04165006,108580.0,108570.0,0.08589651]
[1749497831353,1.56977006,108580.0,108570.0,0.00013829]
[1749497833559,1.53077006,108580.0,108570.0,0.00013829]
[1749497834358,1.49368952,108580.0,108570.0,0.08589651]
[1749497834553,0.96556952,108580.0,108570.0,0.08589651]
[1749497834745,1.49364952,108580.0,108570.0,0.08589651]
[1749497835150,1.49364952,108580.0,108570.0,0.00013829]
[1749497835358,1.49364952,108580.0,108570.0,0.08589651]
[1749497835553,1.49364952,108580.0,108570.0,0.00013829]
[1749497836154,1.49364952,108580.0,108570.0,0.08589651]
[1749497837660,1.49364952,108580.0,108570.0,0.00013829]
[1749497838058,1.53018836,108580.0,108570.0,0.00013829]
[1749497839262,1.53018836,108580.0,108570.0,0.00419489]
[1749497840566,1.49118836,108580.0,108570.0,0.00419489]
[1749497841175,1.49118836,108580.0,108570.0,0.08995311]
[1749497841482,1.45464952,108580.0,108570.0,0.08995311]
[1749497841774,1.45464952,108580.0,108570.0,0.12035311]
[1749497842165,1.45464952,108580.0,108570.0,0.17754134]
[1749497842366,0.86506952,108580.0,108570.0,0.17754134]
[1749497842561,1.35996952,108580.0,108570.0,0.24094134]
[1749497844371,1.35996952,108580.0,108570.0,0.18375311]
[1749497844572,1.35996952,108580.0,108570.0,0.2409625]
[1749497844971,1.35996952,108580.0,108570.0,0.18375311]
[1749497845576,1.35996952,108580.0,108570.0,0.24096805]
[1749497846170,1.35996952,108580.0,108570.0,0.18375311]
[1749497847766,1.43796952,108580.0,108570.0,0.18375311]
[1749497848172,1.85548952,108580.0,108570.0,0.18375311]
[1749497848683,1.85540952,108580.0,108570.0,0.18375311]
[1749497852289,1.32748952,108580.0,108570.0,0.18375311]
[1749497852581,1.32748952,108580.0,108570.0,0.36785771]
[1749497852881,1.85512952,108580.0,108570.0,0.36785771]
[1749497853086,1.49432952,108580.0,108570.0,0.36785771]
[1749497853478,1.49472952,108580.0,108570.0,0.28209949]
[1749497853680,1.85552952,108580.0,108570.0,0.39654989]
[1749497853883,1.85552952,108580.0,108570.0,0.21244529]
[1749497854282,1.85552952,108580.0,108570.0,0.09799489]
[1749497854482,1.85552952,108580.0,108570.0,0.39654989]
[1749497854683,1.6452477,108580.0,108570.0,0.18392279]
[1749497854886,1.81652952,108580.0,108570.0,0.36802739]
[1749497855590,1.81652952,108580.0,108570.0,0.18392279]
[1749497856881,1.81652952,108580.0,108570.0,0.36802729]
[1749497857690,1.81652952,108580.0,108570.0,0.28209939]
[1749497858286,1.85313644,108580.0,108570.0,0.09799489]
[1749497858487,1.89608505,108580.0,108570.0,0.18395079]
[1749497858692,1.92838505,108580.0,108570.0,0.18395079]
[1749497858893,1.92838505,108580.0,108570.0,0.15255079]
[1749497858894,1.94667076,108580.0,108570.0,0.15255079]
[1749497861092,1.90364215,108580.0,108570.0,0.15255079]
[1749497861790,1.86464215,108580.0,108570.0,0.15255079]
[1749497861989,1.77155644,108580.0,108570.0,0.15255079]
[1749497862192,1.77155644,108580.0,108570.0,0.26700119]
[1749497863288,1.9817746,108580.0,108570.0,0.26700119]
[1749497868495,2.0127746,108580.0,108570.0,0.26700119]
[1749497868900,1.9737746,108580.0,108570.0,0.26700119]
[1749497869798,1.9737746,108580.0,108570.0,0.15255079]
[1749497870499,2.1265746,108580.0,108570.0,0.15255079]
[1749497870905,2.12658683,108580.0,108570.0,0.15255079]
[1749497874306,2.12658683,108580.0,108570.0,0.20460119]
[1749497874505,0.1841047,108570.0,108560.0,0.0932]
[1749497874806,0.79177384,108570.0,108560.0,0.0932]
[1749497876108,0.75277384,108570.0,108560.0,0.0932]
[1749497878606,0.75277384,108570.0,108560.0,0.031]
[1749497879008,0.84997384,108570.0,108560.0,0.031]
[1749497879606,0.84997384,108570.0,108560.0,0.0633]
[1749497880508,1.00277384,108570.0,108560.0,0.0633]
[1749497883813,0.96377384,108570.0,108560.0,0.0633]
[1749497884002,0.98240852,108570.0,108560.0,0.0633]
[1749497884207,0.77215853,108570.0,108560.0,0.0633]
[1749497884413,0.98240852,108570.0,108560.0,0.0633]
[1749497884614,0.88520852,108570.0,108560.0,0.0633]
[1749497884814,0.88520852,108570.0,108560.0,0.0987566]
[1749497886818,0.94930852,108570.0,108560.0,0.0987566]
[1749497888411,0.93067384,108570.0,108560.0,0.0987566]
[1749497888607,0.92967384,108570.0,108560.0,0.0987566]
[1749497888914,0.86757384,108570.0,108560.0,0.0987566]
[1749497889318,0.86957384,108570.0,108560.0,0.0987566]
[1749497889612,1.76393779,108570.0,108550.0,0.00013829]
[1749497889813,1.36807147,108560.0,108550.0,0.00013829]
[1749497890016,1.40469062,108560.0,108550.0,0.00013829]
[1749497890411,1.19444063,108560.0,108550.0,0.00079364]
[1749497890621,1.77356063,108560.0,108550.0,0.00079364]
[1749497891817,1.77456063,108560.0,108550.0,0.00079364]
[1749497892917,1.62176063,108560.0,108550.0,0.00079364]
[1749497893309,1.83201062,108560.0,108550.0,0.00079364]
[1749497894421,2.19281062,108560.0,108550.0,0.00079364]
[1749497894917,1.98256063,108560.0,108550.0,0.00079364]
[1749497895322,2.19281062,108560.0,108550.0,0.00079364]
[1749497895717,2.19281062,108560.0,108550.0,0.01476581]
[1749497896013,1.55624063,108560.0,108550.0,0.00079364]
[1749497896219,1.98252063,108560.0,108550.0,0.03239364]
[1749497896922,1.98252063,108560.0,108550.0,0.0780838]
[1749497897522,1.98252063,108560.0,108550.0,0.07808035]